[Event "European Women-ch 2023"]
[Site "Petrovac"]
[Date "2023.03.23"]
[Round "6.3"]
[White "Calzetta Ruiz, Monica"]
[Black "Vidic, Teja"]
[Result "1/2-1/2"]
[ECO "C76"]
[WhiteElo "2185"]
[BlackElo "2097"]
[Annotator "TA"]
[PlyCount "114"]
[EventDate "2023.03.15"]
[EventType "swiss"]
[EventCountry "MNE"]
[SourceTitle "playchess.com"]
[Source "ChessBase"]
[SourceQuality "1"]
[TimeControl "40/5400+30:1800+30"]

{[%evp 15,114,31,44,33,64,52,54,55,84,86,92,71,85,70,138,141,141,137,140,146,166,165,169,142,170,168,190,180,181,158,196,198,185,195,199,204,164,166,168,178,298,303,275,220,170,148,135,140,307,272,386,277,404,404,718,476,439,141,151,137,137,137,365,354,342,326,991,1016,994,914,1011,734,638,343,1199,954,5531,4786,6053,5281,29987,29984,29988,29983,29982,29983,29988,29989,29989,0,0,0,0,0,0,0,0,0,0,0,0]} 1. e4 {[%emt 0:00:28]} e5 {[%emt 0:00:05]} 2. Nf3 {[%emt 0:00:06]} Nc6 {[%emt 0:00:05]} 3. Bb5 {[%emt 0:00:06]} a6 {[%emt 0:00:10]} 4. Ba4 {[%emt 0:00:07]} d6 {[%emt 0:00:05]} 5. O-O {[%emt 0:01:47]} Bd7 {[%emt 0:00:07]} 6. c3 {[%emt 0:00:59]} g6 {[%emt 0:00:25]} 7. d4 {[%emt 0:00:45]} Bg7 {[%emt 0:00:48]} 8. Be3 {[%emt 0:14:07]} Nf6 {[%emt 0:03:09]} 9. Nbd2 {[%emt 0:07:51] C76: Ruy Lopez: Deferred Steinitz: 5 c3 Bd7 6 d4 g6.} Ng4 {[%emt 0:12:50]} 10. Bg5 {[%emt 0:10:28][%cal Be3g5,Bg5h4,Bh4g3][%mdl 32]} f6 {[%emt 0:00:19]} 11. Bh4 {[%emt 0:00:07] [#] White is slightly better.} O-O $146 {[%emt 0:06:23]} ({Predecessor:} 11... Qe7 12. b4 h5 13. Bg3 O-O 14. Re1 Nh6 15. Nf1 g5 16. Bb3+ Kh7 17. dxe5 Nxe5 18. Bxe5 fxe5 {½-½ Yu,Y (2751)-Mamedyarov,S (2799) Huaian IMSA Basque 2nd rapid 2017 (3.2)}) 12. h3 {[%emt 0:05:44]} Nh6 {[%emt 0:04:36]} 13. Bxc6 {[%emt 0:06:01]} Bxc6 {[%emt 0:00:05]} 14. dxe5 {[%emt 0:00:06]} g5 {[%emt 0:02:10]} (14... dxe5 $14 15. Nxe5 {[%mdl 64] Pin} Bb5) 15. exf6 $1 $16 {[%emt 0:02:31]} Bxf6 {[%emt 0:00:07] [#]} 16. Bg3 {[%emt 0:01:39]} Nf7 {[%emt 0:17:04]} 17. Nd4 {[%emt 0:01:12]} Bd7 {[%emt 0:00:22] Inhibits Ne6.} 18. Nc4 {[%emt 0:04:23][%cal Bd2c4,Bc4e3,Be3d5][%mdl 32]} Re8 {[%emt 0:08:03]} 19. f3 {[%emt 0:04:05]} b5 {[%emt 0:03:35]} 20. Ne3 {[%emt 0:00:12]} Rb8 {[%emt 0:03:08]} 21. Re1 {[%emt 0:09:06]} a5 {[%emt 0:01:25]} 22. a3 {[%emt 0:05:38]} b4 {[%emt 0:04:56]} 23. axb4 {[%emt 0:00:10]} axb4 {[%emt 0:00:06]} 24. Nd5 {[%emt 0:03:29] And now Ra7 would win.} Bh8 {[%emt 0:00:30]} 25. Ra7 {[%emt 0:04:03]} (25. cxb4 c6 $16) (25. Nxb4 Bxd4+ 26. Qxd4 c5 $15) 25... c6 {[%emt 0:04:53]} 26. Ne3 {[%emt 0:00:47] Excellent horsemanship.} (26. Nxb4 Bxd4+ 27. Qxd4 c5 $11) 26... bxc3 {[%emt 0:01:30]} 27. bxc3 {[%emt 0:00:05]} c5 {[%emt 0:03:54]} (27... Ra8 $142 28. Rb7 Rb8) 28. Ndf5 $18 {[%emt 0:03:59]} Bxc3 {[%emt 0:03:27]} 29. Nd5 {[%emt 0:02:20]} Bxf5 {[%emt 0:01:44]} (29... Bxe1 $2 30. Rxd7 Bxg3 31. Rxd8 Rexd8 32. Nxg3 $18) 30. Nxc3 {[%emt 0:00:08]} Be6 {[%emt 0:01:10]} 31. Nd5 {[%emt 0:00:41] White has more active pieces.} Kf8 $2 {[%emt 0:09:27]} (31... Bxd5 $16 32. Qxd5 Qf6) 32. Qd2 {[%emt 0:03:28]} h5 {[%emt 0:06:10]} (32... Bxd5 $142 33. Qxd5 Re7) 33. Rea1 {[%emt 0:00:11]} ({Inferior is} 33. Qc3 h4 34. Nf6 hxg3 $11) 33... Bxd5 {[%emt 0:02:00]} (33... h4 {is a better defense.}) 34. Qxd5 {[%emt 0:00:06][%csl Ga7][%cal Rd5f7]} Re7 {[%emt 0:00:09]} (34... Qf6 $142 35. Rxf7+ {[%mdl 64] Remove Defender} Qxf7) 35. Ra8 {[%emt 0:04:00] Strongly threatening Rxb8.} Kg7 {[%emt 0:01:25]} 36. Rxb8 {[%emt 0:03:54]} (36. Be1 $18 {Hoping for Bc3+.} Re5 37. Rxb8 Qxb8 38. Bc3 {[%mdl 64] Pin}) 36... Qxb8 $16 {[%emt 0:00:06]} 37. Qxc5 {[%emt 0:00:25]} Qb2 {[%emt 0:01:12] Prevents Qd4+.} 38. Qc1 {[%emt 0:00:06]} (38. Bxd6 $2 {perishes.} Qxa1+ 39. Kh2 Rb7 $19) 38... Qb6+ {[%emt 0:01:01]} (38... Qxc1+ $16 39. Rxc1 h4) 39. Bf2 $18 {[%emt 0:00:03]} Qb5 {[%emt 0:00:38]} 40. Bd4+ {[%emt 0:00:00]} Kh7 $2 {[%emt 0:00:00]} (40... Kg6 41. Qc2 Qb4) 41. Qc8 {[%emt 0:11:55] Threatening mate with Qf8.} Re8 {[%emt 0:05:46] Inhibits Qf8.} 42. Qc7 {[%emt 0:01:52]} Kg6 {[%emt 0:00:34]} 43. Ra7 {[%emt 0:03:43]} Qb3 {[%emt 0:00:30]} 44. Kh2 {[%emt 0:03:55][%cal Oh3h4] Black must now prevent h4!} g4 $2 {[%emt 0:02:06]} (44... h4 45. Qd7 Qe6) 45. Rb7 {[%emt 0:07:54]} Qe6 {[%emt 0:01:20]} 46. f4 {[%emt 0:00:48][%cal Bf3f4,Bf4f5][%mdl 32] Black is weak on the dark squares} g3+ {[%emt 0:03:27]} 47. Kxg3 {[%emt 0:02:30] f5+ would kill now.} Rg8 {[%emt 0:02:55]} 48. Kf3 {[%emt 0:01:45]} Qa2 {[%emt 0:01:00]} 49. f5+ {[%emt 0:00:46]} Kh6 {[%emt 0:00:27]} 50. Be3+ {[%emt 0:00:34]} (50. Qxf7 $2 Qxg2+ 51. Ke3 Rg3+ 52. Kf4 Rf3#) 50... Rg5 {[%emt 0:00:40]} 51. Bxg5+ {[%emt 0:01:52]} (51. Qxf7 $2 {leads to mate.} Qxg2+ 52. Kf4 Qg3#) 51... Nxg5+ {[%emt 0:00:05] KQR-KQN} 52. Kg3 $2 {[%emt 0:00:13]} (52. Ke3 {mates} Nf7 53. Qxf7 Qa3+ 54. Ke2 Kg5 55. g3 Qxg3 56. Qe7+ Kf4 57. Qxd6+ Kxe4 58. Re7+ Kxf5 59. Qxg3 Kf6 60. Qg7+ Kf5 61. Re5+ {[%mdl 64] Skewer} Kf4 62. Qg5#) 52... h4+ $1 $11 {[%emt 0:01:33][%mdl 64] [#] Decoy. The position is equal.} 53. Kxh4 {[%emt 0:01:09][%csl Gb7][%cal Rc7g7]} Qf2+ {[%emt 0:00:46]} 54. g3 {[%emt 0:00:58][%csl Gb7][%cal Rc7g7]} Nf3+ {[%emt 0:00:10]} 55. Kg4 {[%emt 0:00:00][%cal Rc7d6]} Ne5+ {[%emt 0:00:53]} 56. Kh4 {[%emt 0:00:00][%csl Gb7][%cal Rc7h7]} Nf3+ {[%emt 0:00:05]} 57. Kg4 {[%emt 0:00:03][%cal Rc7d6]} Ne5+ {[%emt 0:00:05] Black escapes into a draw. An exciting game.   Weighted Error Value: White=0.52/Black=0.46} 1/2-1/2

[Event "European Women-ch 2023"]
[Site "Petrovac"]
[Date "2023.03.23"]
[Round "6.4"]
[White "Socko, Monika"]
[Black "Beydullayeva, Govhar"]
[Result "1-0"]
[ECO "E32"]
[WhiteElo "2432"]
[BlackElo "2388"]
[Annotator "TA"]
[PlyCount "81"]
[EventDate "2023.03.15"]
[EventType "swiss"]
[EventCountry "MNE"]
[SourceTitle "playchess.com"]
[Source "ChessBase"]
[SourceQuality "1"]
[TimeControl "40/5400+30:1800+30"]

{[%evp 10,81,22,0,33,27,33,36,43,16,22,25,32,29,57,62,59,60,69,63,73,39,131,82,82,99,118,102,98,104,88,97,140,133,148,130,129,114,121,90,62,47,123,98,119,119,150,157,172,169,294,267,279,275,656,656,664,641,737,716,714,703,998,1310,1304,1241,1528,1193,1164,1152,1143,1062,29972,6162]} 1. d4 {[%emt 0:00:03]} Nf6 {[%emt 0:00:04]} 2. c4 {[%emt 0:00:04]} e6 {[%emt 0:00:04]} 3. Nc3 {[%emt 0:00:04]} Bb4 {[%emt 0:00:05]} 4. Qc2 {[%emt 0:00:04]} O-O {[%emt 0:00:10]} 5. e4 {[%emt 0:00:11]} d6 {[%emt 0:00:34]} 6. e5 {[%emt 0:00:35]} (6. a3 $5 {[%cal Ra3b4]} Bxc3+ 7. bxc3 $11) 6... Nfd7 {[%emt 0:01:33]} 7. exd6 {[%emt 0:00:57]} cxd6 {[%emt 0:00:10]} 8. Bd3 {[%emt 0:00:41]} Nc6 {[%emt 0:04:09] White is slightly better.} 9. Nge2 {[%emt 0:08:21]} ({Reject} 9. Bxh7+ Kh8 $11) (9. Nf3 $5 {[%cal Rd3h7]}) 9... h6 {[%emt 0:07:19]} 10. O-O {[%emt 0:10:06]} e5 {[%emt 0:15:21]} 11. a3 {[%emt 0:08:45]} Ba5 {[%emt 0:06:04]} 12. d5 {[%emt 0:10:43]} Ne7 {[%emt 0:02:09]} 13. b4 {[%emt 0:00:05]} Bb6 {[%emt 0:16:26]} 14. Ng3 {[%emt 0:00:10]} Bd4 {[%emt 0:01:49] Black is weak on the light squares} 15. Bd2 {[%emt 0:00:40]} Nb6 {[%emt 0:01:46]} (15... a6 $14) 16. Nge2 {[%emt 0:07:20]} (16. Rac1 $142) 16... Bxc3 {[%emt 0:01:15]} 17. Nxc3 {[%emt 0:02:19]} f5 {[%emt 0:02:50]} 18. f4 {[%emt 0:01:33]} e4 {[%emt 0:11:37]} 19. Be2 {[%emt 0:00:37]} Bd7 {[%emt 0:00:07]} 20. Qa2 {[%emt 0:10:51]} Be8 {[%emt 0:00:51]} 21. Be3 {[%emt 0:02:46]} Bf7 {[%emt 0:01:09]} 22. Rac1 {[%emt 0:02:02]} Nd7 {[%emt 0:02:18]} 23. Nb5 {[%emt 0:02:17]} Nf6 {[%emt 0:00:59]} 24. Qd2 {[%emt 0:02:05] White is much more active. The black rooks are badly placed.} ({Don't play} 24. Nxa7 Rxa7 25. Bxa7 b6 $14) 24... a6 {[%emt 0:02:31]} 25. Nc3 {[%emt 0:01:15]} Kh8 {[%emt 0:01:27] White stays focused until the end.} ({Better is} 25... b5 $1 $14) 26. Rfd1 {[%emt 0:01:17]} Rc8 {[%emt 0:04:37]} 27. Bd4 {[%emt 0:01:20]} Bg8 {[%emt 0:00:48]} 28. a4 {[%emt 0:00:58][%cal Ba3a4,Ba4a5][%mdl 32]} Ng6 {[%emt 0:04:32]} 29. a5 {[%emt 0:02:25]} Ng4 {[%emt 0:04:07]} (29... Ne7 {was necessary.} 30. Kh1 Qe8) 30. Bxg4 {[%emt 0:00:31][%mdl 64] Deflection} fxg4 {[%emt 0:00:04]} 31. Nxe4 {[%emt 0:00:10][%cal Of4f5] And now f5! would win.} Rxf4 {[%emt 0:00:53]} (31... Ne7 32. c5 dxc5) 32. g3 $18 {[%emt 0:03:09]} Qe7 {[%emt 0:03:30]} 33. Re1 {[%emt 0:01:14]} ({Weaker is} 33. gxf4 Qxe4 34. Rf1 Qf5 $18) 33... Rcf8 {[%emt 0:04:36]} 34. gxf4 {[%emt 0:02:17]} Nh4 {[%emt 0:00:05]} 35. Rc3 {[%emt 0:03:37]} Nf3+ {[%emt 0:01:19] [#]} 36. Rxf3 $1 {[%emt 0:00:04]} gxf3 {[%emt 0:00:02] [#]} 37. Ng5 $1 {[%emt 0:01:43]} Qc7 {[%emt 0:01:03]} (37... Qd7 38. Ne6) 38. Ne6 {[%emt 0:02:04]} Bxe6 {[%emt 0:00:06]} 39. dxe6 {[%emt 0:01:09]} Qxc4 {[%emt 0:00:26]} 40. Kf2 {[%emt 0:00:00] aiming for Rg1.} Re8 {[%emt 0:00:00]} 41. f5 {[%emt 0:04:01] Weighted Error Value: White=0.10 (very precise) /Black=0.58} 1-0

[Event "European Women-ch 2023"]
[Site "Petrovac"]
[Date "2023.03.23"]
[Round "6.4"]
[White "Zawadzka, Jolanta"]
[Black "Rudzinska, Michalina"]
[Result "0-1"]
[ECO "B12"]
[WhiteElo "2391"]
[BlackElo "2212"]
[Annotator "TA"]
[PlyCount "140"]
[EventDate "2023.03.15"]
[EventType "swiss"]
[EventCountry "MNE"]
[SourceTitle "playchess.com"]
[Source "ChessBase"]
[SourceQuality "1"]
[TimeControl "40/5400+30:1800+30"]

{[%evp 10,140,34,17,25,4,2,8,0,3,11,0,0,0,7,0,33,23,52,51,50,50,39,22,37,46,52,45,366,339,361,335,358,343,349,354,368,342,348,334,362,372,367,351,685,683,666,705,1099,919,835,178,160,11,460,464,195,0,0,0,0,0,0,0,0,-84,-76,-289,-288,-638,-289,-512,-509,-474,-187,-179,-175,-193,-173,-283,-280,-339,-337,-330,-320,-318,-243,-226,-214,-222,-203,-206,-207,-200,-200,-200,-129,-129,-115,-181,-181,-188,-167,-337,-329,-258,-110,-249,-231,-238,-202,-202,-202,-308,-294,-504,-460,-586,-581,-415,-406,-29962,-29969,-29975,-1406,-29970,-29971,-29986,-29972,-29985,-29986,-29985,-29986]} 1. e4 {[%emt 0:00:03]} c6 {[%emt 0:00:08]} 2. d4 {[%emt 0:00:05]} d5 {[%emt 0:00:09]} 3. e5 {[%emt 0:00:04]} Bf5 {[%emt 0:00:13]} 4. h4 {[%emt 0:00:06]} h6 {[%emt 0:01:14]} 5. g4 {[%emt 0:00:26]} Be4 {[%emt 0:00:28]} 6. f3 {[%emt 0:00:07]} Bh7 {[%emt 0:00:08]} 7. Bd3 {[%emt 0:00:42]} Bxd3 {[%emt 0:00:40]} 8. Qxd3 {[%emt 0:00:07][%cal Oe5e6] White wants to play e6!} e6 {[%emt 0:00:23] The position is equal.} 9. h5 {[%emt 0:00:50]} c5 {[%emt 0:03:50]} 10. c3 {[%emt 0:00:47]} Nc6 {[%emt 0:00:21]} 11. Ne2 {[%emt 0:01:00]} Rc8 {[%emt 0:04:16]} 12. a3 {[%emt 0:07:10]} Qb6 {[%emt 0:03:17]} (12... c4 $5 {[%cal Rc4d3]} 13. Qc2 Na5 $11) 13. Nd2 {[%emt 0:02:36]} cxd4 {[%emt 0:07:50]} 14. cxd4 {[%emt 0:00:21]} Na5 {[%emt 0:01:28]} 15. b3 {[%emt 0:09:24][%cal Bb2b3,Bb3b4][%mdl 32]} Ne7 {[%emt 0:04:51]} 16. Kf2 {[%emt 0:11:55]} Nec6 {[%emt 0:03:06]} 17. f4 {[%emt 0:05:00]} Be7 {[%emt 0:03:49]} 18. Rb1 {[%emt 0:07:28]} f6 $2 {[%emt 0:19:18][%mdl 8192]} (18... O-O $14) 19. b4 $18 {[%emt 0:11:31]} Nc4 {[%emt 0:01:40]} 20. Nxc4 {[%emt 0:00:30]} dxc4 {[%emt 0:00:07]} 21. Qg6+ {[%emt 0:00:11]} (21. Qxc4 Kd7 $16) 21... Kf8 {[%emt 0:05:27]} 22. Be3 {[%emt 0:02:05][%cal Od4d5]} Qc7 {[%emt 0:03:31]} 23. Nc3 {[%emt 0:08:49]} Qd7 {[%emt 0:05:13]} 24. Rbd1 {[%emt 0:00:27]} Bd8 {[%emt 0:05:08]} 25. d5 {[%emt 0:03:14]} Ne7 {[%emt 0:01:24]} 26. Qe4 {[%emt 0:04:40]} (26. dxe6 Qxe6 27. Qe4 (27. Bc5 Bb6 $16) 27... fxe5 28. fxe5 (28. Qxb7 Qxg4 29. Qf3 Qxf3+ 30. Kxf3 exf4 $14) 28... Bc7 $18) 26... Nxd5 {[%emt 0:01:17]} (26... fxe5 27. fxe5 exd5 28. Nxd5 Qe6) 27. Nxd5 {[%emt 0:00:35]} exd5 {[%emt 0:00:05]} 28. Rxd5 {[%emt 0:00:08]} (28. Qxd5 Qxd5 29. Rxd5 fxe5 $16) 28... Qxg4 {[%emt 0:01:12]} 29. Bc5+ {[%emt 0:09:57]} (29. Bxa7 b6 $16) 29... Kg8 {[%emt 0:02:32]} 30. Qxc4 $2 {[%emt 0:05:54]} (30. Rg1 Qh4+ 31. Rg3) 30... Kh7 {[%emt 0:00:55]} 31. exf6 {[%emt 0:02:30]} (31. Qe4+ $16 f5 32. Qf3) 31... Bxf6 $2 {[%emt 0:02:21][%mdl 8192]} (31... Re8 $11 32. Qd3+ Kg8) 32. Qe4+ {[%emt 0:00:06]} Kg8 {[%emt 0:00:38][%cal Of6g5] [#]} 33. Rd3 $2 {[%emt 0:00:14]} (33. Bxa7 Kf7 $11) ({Only move:} 33. Rg1 $1 $18 {[%cal Rg1g4]} Qh3 34. Bxa7) 33... b6 $1 $11 {[%emt 0:03:21]} 34. Rg1 {[%emt 0:02:15]} Qxh5 {[%emt 0:06:53]} (34... Qh4+ 35. Rdg3 Rd8 36. Qe6+ (36. Qc4+ Kh7 $18) 36... Kh7 37. Qe4+ Kg8 38. Qe6+ (38. Qc4+ Kh7 $18) 38... Kh7 39. Qf5+ Kg8 40. Be3 $18 (40. Qe6+ Kh7 $11)) 35. Qe6+ {[%emt 0:00:06]} Kh7 {[%emt 0:00:05] The board is on fire.} 36. Qe4+ {[%emt 0:00:32]} Kg8 $1 {[%emt 0:00:21]} 37. Be3 {[%emt 0:05:32]} (37. Qe6+ $11 {keeps the balance.} Kh7 38. Qe4+ Kg8) 37... Re8 $36 {[%emt 0:07:59][%mdl 2048] Black is really pushing.} 38. Qc4+ $2 {[%emt 0:00:16] [#]} (38. Qf3 $17 Qf7 39. Qd5) 38... Kh7 $1 $19 {[%emt 0:00:23] ...Bh4+ would be deadly.} 39. Rg2 $2 {[%emt 0:01:23]} (39. Qc2 Qf5 40. Rc3) 39... Qh4+ {[%emt 0:02:15]} (39... Qh1 $142 {And now ...Bh4+ would win.} 40. Kf3 Bh4) 40. Kg1 $2 {[%emt 0:00:00]} (40. Kf1 {is a better defense.} Rhf8 41. Bf2 Qh1+ 42. Rg1) 40... Qe1+ {[%emt 0:00:00]} 41. Kh2 {[%emt 0:00:43]} Rhf8 $2 {[%emt 0:04:58]} (41... Rxe3 42. Rxe3 Qxe3 43. Qc2+ Kg8 44. Qc4+ Kf8) 42. Bd2 {[%emt 0:05:34]} Qf1 {[%emt 0:03:30] Threatens to win with ...Re2.} 43. Qd5 {[%emt 0:03:29]} Re2 {[%emt 0:02:52]} 44. Rdg3 {[%emt 0:00:46]} (44. Rxe2 $142 Qxe2+ 45. Kg1) 44... Rd8 {[%emt 0:02:49]} ({Don't go for} 44... Kh8 $2 45. Qf3 Rxg2+ 46. Qxg2 $19) 45. Qf5+ {[%emt 0:01:40]} Kh8 {[%emt 0:00:06]} 46. Rxe2 {[%emt 0:10:18]} Qxe2+ {[%emt 0:00:06]} 47. Rg2 {[%emt 0:00:01]} Qd1 {[%emt 0:04:17]} 48. Qg6 {[%emt 0:01:59]} Qb3 {[%emt 0:01:30]} ({Worse is} 48... Rxd2 49. Qe8+ Kh7 50. Qe4+ Kh8 51. Qe8+ Kh7 52. Qe4+ Kh8 53. Qe8+ $11) 49. Re2 {[%emt 0:00:41]} Qd5 {[%emt 0:04:32]} 50. Re8+ {[%emt 0:03:17]} Rxe8 {[%emt 0:00:04]} 51. Qxe8+ {[%emt 0:00:04][%mdl 4096] Endgame KQB-KQB} Kh7 {[%emt 0:00:06]} 52. Qe3 {[%emt 0:00:06]} Bd4 {[%emt 0:01:23]} 53. Qd3+ {[%emt 0:00:41]} Kh8 {[%emt 0:00:48][%cal Od4g1] Black is more active.} 54. Qe2 {[%emt 0:00:49]} (54. Be3 $17 Qh5+ 55. Kg3) 54... Qf5 {[%emt 0:01:43]} 55. Bc1 {[%emt 0:02:17]} b5 {[%emt 0:00:47]} 56. Bd2 $2 {[%emt 0:02:41]} (56. Kg3 {might work better.}) 56... Qc2 {[%emt 0:00:57] Hoping for ...Bc3.} 57. Kg3 {[%emt 0:00:17]} Kh7 {[%emt 0:00:36]} (57... a6 $19 {aiming for ...Kh7.} 58. Kf3 Qc6+ 59. Kg4 Qg6+ 60. Kh3 Qc2 61. Qe8+ Kh7) 58. Kf3 {[%emt 0:00:52]} (58. Qxb5 $17 a6 59. Qd5 Qd3+ 60. Kg4) 58... Bb2 {[%emt 0:02:44]} 59. Qe3 {[%emt 0:01:09] [#]} Bxa3 $1 {[%emt 0:05:09][%mdl 576] Deflection} 60. Bc3 {[%emt 0:00:22]} Bc1 {[%emt 0:00:30]} 61. Qd4 {[%emt 0:00:06]} (61. Qe5 {was the only defense.} Qd3+ 62. Kf2) 61... Qg6 {[%emt 0:00:30]} 62. Qe5 $2 {[%emt 0:02:02]} (62. Bd2 {was necessary.} Bxd2 63. Qxd2) 62... h5 {[%emt 0:00:36]} 63. Kf2 {[%emt 0:00:56]} h4 {[%emt 0:01:33]} 64. f5 {[%emt 0:01:06]} Qg5 {[%emt 0:00:21]} 65. Ke2 {[%emt 0:00:39]} (65. Bd4 $19) 65... Qg4+ {[%emt 0:00:49]} 66. Kf2 {[%emt 0:01:03]} Bf4 {[%emt 0:00:31]} (66... h3 $142 67. Qg3 Be3+ {[%mdl 64] Deflection, Promotion} 68. Qxe3 Qg2+ 69. Ke1 h2 70. Kd1 h1=Q+ 71. Qe1 Qh5+ 72. Kc1 Qa2 73. f6 Qa3+ 74. Bb2 Qg5+ 75. Qd2 Qxb2+ {[%mdl 64] Deflection} 76. Kxb2 Qxd2+ 77. Ka3 gxf6 78. Kb3 f5 79. Ka3 f4 80. Kb3 f3 81. Ka3 f2 82. Kb3 f1=Q 83. Ka3 Qh3#) 67. Qe6 {[%emt 0:00:39]} h3 {[%emt 0:00:25] Black mates.} 68. Bd4 {[%emt 0:00:26]} h2 {[%emt 0:00:16]} 69. Qc6 {[%emt 0:00:16]} Qg1+ {[%emt 0:00:21][%mdl 64] Skewer} 70. Ke2 {[%emt 0:00:03]} h1=Q {[%emt 0:00:17] Black used his chance. Excellently played by Rudzinska!   Weighted Error Value: White=0.54/Black=0.52} 0-1